Cogmind - Beta 16 @@@ ROGUE MODE // 2026.01.18 @ 19:07:15 Player: Lazz Result: Destroyed by G-47 Trooper with Particle Gun Performance ------------- Evolutions (0) 0 Regions Visited (2) 400 Robots Destroyed (13) 65 Value Destroyed (211) 211 Prototype IDs (1) 20 Alien Tech Used (0) 0 Bonus (0) 0 TOTAL SCORE: 696 Bonus ------- None Cogmind --------- Core Integrity 0/250 Matter 290/300 Energy 250/250 System Corruption 2% Temperature Cool (9) Movement Rolling (140) Ox4 Location -10/Mines Parts ------- > --- POWER (1) -------- Ion Engine > --- PROPULSION (2) --- Wheel Wheel > --- UTILITY (2) ------ Huge Storage Unit Experimental Sensor Array > --- WEAPON (2) ------- Small Laser > --- INVENTORY (25) --- Aluminum Leg Wheel Wheel Improved Heat Sink Small Storage Unit Small Matter Pod (50) High-capacity Matter Pod (200) Peak State ------------ > --- POWER ------------ Ion Engine > --- PROPULSION ------- Wheel Wheel > --- UTILITY ---------- Huge Storage Unit Experimental Sensor Array > --- WEAPON ----------- Small Laser > --- INVENTORY -------- Aluminum Leg Wheel Wheel Wheel Improved Heat Sink Small Storage Unit Small Matter Pod High-capacity Matter Pod [Rating: 15] Favorites ----------- Power Ion Engine Engine Ion Engine Propulsion Wheel Leg Aluminum Leg Wheel Wheel Utility Huge Storage Unit Device Experimental Sensor Array Storage Huge Storage Unit Weapon Small Laser Energy Gun Small Laser Ballistic Gun Light Assault Rifle Build | -11 -10 -10 ------- Run | Yrd Mat Min Slots Evolved . | . . . Power . | . . . Propulsion . | . . . Utility . | . . . Weapon . | . . . Parts Attached 19 | 7 3 9 Power 2 | 1 . 1 Engine 2 | 1 . 1 Core . | . . . Reactor . | . . . Propulsion 9 | 2 2 5 Treads . | . . . Leg 2 | . . 2 Wheel 7 | 2 2 3 Hover . | . . . Flight . | . . . Utility 4 | 2 1 1 Device 2 | 1 . 1 Storage 2 | 1 1 . Processor . | . . . Hackware . | . . . Protection . | . . . Artifact . | . . . Weapon 4 | 2 . 2 Energy Gun 2 | . . 2 Energy Cannon . | . . . Ballistic Gun 2 | 2 . . Ballistic Cannon . | . . . Launcher . | . . . Special Weapon . | . . . Impact Weapon . | . . . Slashing Weapon . | . . . Piercing Weapon . | . . . Special Melee Weapon . | . . . Unidentified Prototypes 1 | . . 1 Corrupted Parts 1 | . . 1 System Corruption 2 | . . 2 Parts Lost 7 | . 4 3 Power . | . . . Propulsion 3 | . 1 2 Utility 1 | . 1 . Weapon 3 | . 2 1 Highest Loss Streak 5 | . 4 5 To Critical Strikes . | . . . Average Backups 5 | 2 7 5 Power . | . . . Propulsion 3 | 1 4 2 Utility 2 | . 1 2 Weapon . | . 1 . Tool/Special . | . . . Unused Backups 7 | 1 . 6 Power . | . . . Propulsion 4 | 1 . 3 Utility 3 | . . 3 Weapon . | . . . Tool/Special . | . . . Average Slot Usage (%) 81 | . 96 75 Engine 5 | . 12 1 Leg 9 | . . 14 Wheel 17 | . 27 12 Device 12 | . 14 11 Storage 14 | . 14 14 Energy Gun 14 | . . 20 Ballistic Gun 7 | . 26 . Peak Build Rating 15 | 9 9 15 Average Rating 10 | 6 8 11 On Entrance 4 | . 9 3 Avg Prop Armor Cover (%) . | . . . Naked Turns . | . . . Heaviest Build 89 | 14 89 87 Greatest Support 20 | 20 20 20 Greatest Overweight (x) 8 | . 4 8 Average Overweight (x) 3 | . 2 4 Largest Inventory Capacity 25 | 8 25 25 Average Capacity 21 | 7 18 25 Most Carried 8 | 7 8 8 Average Carried 5 | 2 7 5 Final Capacity 25 | 8 25 25 Final Carried 7 | 7 6 7 Class Distribution -------------------- 100% | Mutant Dominant Class ---------------- Mutant | -10/Materials Mutant | -10/Mines Resources | -11 -10 -10 ----------- Run | Yrd Mat Min Matter Collected 547 | 432 35 80 Remotely . | . . . Salvage Created 431 | 180 49 202 Parts 34 | 21 3 10 Haulers Intercepted 1 | . 1 . Recyclers Shooed . | . . . Parts Field Recycled . | . . . Retrieved Matter . | . . . Parts Self-Destructed . | . . . Prevented . | . . . Parts Restored . | . . . Kills | -11 -10 -10 ------- Run | Yrd Mat Min Combat Hostiles Destroyed 4 | . . 4 Guns 4 | . . 4 Classes Destroyed 6 | 3 1 2 Worker 1 | 1 . . Builder 1 | . . 1 Tunneler 5 | 5 . . Hauler 1 | . 1 . Recycler 1 | 1 . . Grunt 4 | . . 4 Best Kill Streak 5 | 5 1 2 Combat Bots Only 2 | . . 2 Max Kills in Single Turn 1 | 1 1 1 Gunslinging . | . . . Exploded . | . . . Melee . | . . . Uniques/NPCs Destroyed . | . . . Combat | -11 -10 -10 -------- Run | Yrd Mat Min Hostile Shots Fired 102 | . 45 57 Missed 24 | . 11 13 Hits 78 | . 34 44 Projectile 78 | . 34 44 Critical Strikes 2 | . . 2 Damage Taken 1020 | . 443 577 Core 250 | . 70 180 Absorbed by Shields . | . . . Core Remaining (%) 100 | 100 . . Volleys Fired 71 | 28 3 40 Largest 2 | 2 2 2 Hottest 80 | 40 40 80 Shots Fired 103 | 56 6 41 Gun 103 | 56 6 41 Cannon . | . . . Launcher . | . . . Special . | . . . Kinetic 62 | 56 6 . Thermal 31 | . . 31 Explosive . | . . . Electromagnetic 10 | . . 10 Robot Hit Streak 7 | 4 1 7 Robot Miss Streak 4 | 3 4 2 Penetration Max . | . . . Secondary Targets . | . . . Shots Hit Robots 61 | 30 1 30 Core Hits 25 | 12 3 10 Critical Kills . | . . . Critical Parts Destroyed 1 | 1 . . Critical Strikes 1 | 1 . . Destroy 1 | 1 . . Melee Attacks . | . . . Impact . | . . . Slashing . | . . . Piercing . | . . . Sneak Attacks . | . . . Combat Hostiles . | . . . Follow-up Attacks . | . . . Damage Inflicted 709 | 280 54 375 Guns 648 | 280 32 336 Cannons . | . . . Explosions 39 | . . 39 Melee . | . . . Ramming 22 | . 22 . Kinetic 312 | 280 32 . Thermal 282 | . . 282 Explosive . | . . . Electromagnetic 93 | . . 93 Impact . | . . . Slashing . | . . . Piercing . | . . . Highest Corruption 2 | . . 2 Average Corruption 2 | . . 2 Corruption Purged . | . . . Corruption Blocked . | . . . Effects 14 | . . 14 Message Errors 7 | . . 7 Heat Flow Errors 2 | . . 2 Parts Rejected 1 | . . 1 Data Loss (minor) 1 | . . 1 Data Loss (major) 1 | . . 1 Misfires 1 | . . 1 Weapon Failures 1 | . . 1 Overload Shots . | . . . Overflow Damage . | . . . Projectiles . | . . . Explosions . | . . . Melee . | . . . Knockbacks . | . . . Impact . | . . . Kinetic . | . . . Secondary . | . . . Self-Inflicted Damage 10 | . 10 . Shots . | . . . Rammed 4 | . 4 . Targets Rammed 4 | . 4 . Kicked . | . . . Crushed . | . . . Highest Temperature 143 | . . 143 Average Temperature 38 | . . 38 Received Heat Transfer 597 | . 234 363 Siege Activations . | . . . Martial Activations . | . . . Shielding Activations . | . . . Robots Disrupted . | . . . Combat Hostiles . | . . . Robots Corrupted . | . . . Combat Hostiles . | . . . Parts Fried . | . . . Impact Corruptions . | . . . Robots Melted . | . . . Combat Hostiles . | . . . Parts Melted 3 | . . 3 Heat Transferred 525 | . . 525 Parts Sabotaged . | . . . Parts Stolen . | . . . Parts Stripped . | . . . Power Chain Reactions 1 | . . 1 Alert | -11 -10 -10 ------- Run | Yrd Mat Min Maximum Alert Level . | . . . Low Security (%) 100 | 100 100 100 Level 1 . | . . . Level 2 . | . . . Level 3 . | . . . Level 4 . | . . . Level 5 . | . . . High Security . | . . . Max Security . | . . . Peak Influence 50 | 10 7 50 Initial . | . . . Average 4 | 1 . 7 Influence Increases 169 | 35 14 120 Destroy 0b10 Robot/C 80 | . . 80 Destroy 0b10 Robot/NC 45 | 35 5 5 Destroy Leader 22 | . 2 20 Successful Hack 7 | . 7 . Lose Combat Pursuer 15 | . . 15 Influence Decreases 169 | 35 14 120 Time Decay 169 | 35 14 120 Squads Dispatched 1 | . 1 . Investigation . | . . . Extermination . | . . . Reinforcement 1 | . 1 . Assault . | . . . Garrison . | . . . Intercept . | . . . Searches Triggered . | . . . Construction Impeded . | . . . Haulers Reinforced . | . . . Active Scanning Responses . | . . . Cargo Convoy Interrupts . | . . . Stealth | -11 -10 -10 --------- Run | Yrd Mat Min Distress Signals 1 | . 1 . Communications Jammed . | . . . Distress Signals . | . . . Times Spotted 17 | . 11 6 Peak Tracking Total 7 | . 7 2 Tactical Retreats 1 | . . 1 Traps | -11 -10 -10 ------- Run | Yrd Mat Min Traps Triggered . | . . . Indirectly . | . . . Trap Hack Attempts . | . . . Triggered . | . . . Disarmed . | . . . Reprogrammed . | . . . Reused . | . . . Traps Extracted . | . . . Installed . | . . . Triggered . | . . . Machines | -11 -10 -10 ---------- Run | Yrd Mat Min Machines Disabled . | . . . Max in Single Turn . | . . . Machines Repaired . | . . . Machines Dismantled . | . . . Machines Sabotaged . | . . . Overloaded Fab Kills . | . . . Hacking | -11 -10 -10 --------- Run | Yrd Mat Min Machines Accessed 3 | . 3 . Terminals 3 | . 3 . Fabricators . | . . . Repair Stations . | . . . Recycling Units . | . . . Scanalyzers . | . . . Garrison Access . | . . . Total Hacks 9 | . 9 . Successful 3 | . 3 . Failed 6 | . 6 . Catastrophic 1 | . 1 . Database Lockouts . | . . . Manual 6 | . 6 . Terminals 9 | . 9 . Fabricators . | . . . Repair Stations . | . . . Recycling Units . | . . . Scanalyzers . | . . . Garrison Access . | . . . Terminal Hacks 3 | . 3 . Robot Analysis 1 | . 1 . Branch Access Points 1 | . 1 . Terminal Index 1 | . 1 . Fabricator Hacks . | . . . Repair Station Hacks . | . . . Recycling Unit Hacks . | . . . Scanalyzer . | . . . Garrison Access Hacks . | . . . Unauthorized Hacks . | . . . Terminals . | . . . Fabricators . | . . . Repair Stations . | . . . Recycling Units . | . . . Scanalyzers . | . . . Garrison Access . | . . . Data Cores Recovered . | . . . Used . | . . . Hacking Detections 3 | . 3 . Full Trace Events 1 | . 1 . Feedback Events . | . . . Feedback Blocked . | . . . Robot Schematics Acquired . | . . . Robots Built . | . . . Authchips . | . . . Time . | . . . Total Robot Build Rating . | . . . Part Schematics Acquired . | . . . Parts Built . | . . . Authchips . | . . . Time . | . . . Total Part Build Rating . | . . . Part Studies Acquired . | . . . Parts Repaired . | . . . Time . | . . . Parts Recycled . | . . . Recycled Matter . | . . . Retrieved Matter . | . . . Retrieved Components . | . . . Parts Scanalyzed . | . . . Part Schematics Acquired . | . . . Parts Damaged . | . . . Bothacking | -11 -10 -10 ------------ Run | Yrd Mat Min Used RIF Installer . | . . . Robots Hacked . | . . . Non-combat . | . . . Combat . | . . . Robot Hacks Applied . | . . . Relay Couplers Released . | . . . Fabnet Peak Effective % . | . . . Robots Rewired . | . . . Allies Hacked . | . . . Hacks Repelled . | . . . Allies | -11 -10 -10 -------- Run | Yrd Mat Min Total Allies . | . . . Largest Group . | . . . Highest-Rated Group . | . . . Highest-Rated Ally . | . . . Total Orders . | . . . Ally Attacks . | . . . Total Damage . | . . . Kills . | . . . Allies Corrupted . | . . . Allies Melted . | . . . Intel | -11 -10 -10 ------- Run | Yrd Mat Min Active Infowar (turns) 1004 | 24 327 653 Sensors 653 | . . 653 Terrain 351 | 24 327 . Robot Analysis Total 1 | . 1 . Derelict Logs Recovered 2 | . . 2 Drone Launches . | . . . Drone Recoveries . | . . . Exploration | -11 -10 -10 ------------- Run | Yrd Mat Min Turns Passed 1283 | 156 328 799 Spaces Moved 497 | 74 119 304 Core 2 | 2 . . Treads . | . . . Legs 90 | . . 90 Wheels 405 | 72 119 214 Hover . | . . . Flight . | . . . Fastest Speed 50 | 50 80 140 Average Speed 173 | 79 115 219 Slowest Speed 680 | 80 140 680 Overloaded Moves . | . . . Propulsion Burnouts . | . . . Robots Hopped . | . . . Potential Cave-ins . | . . . Cave-ins Triggered . | . . . Exploration Rate (%) 37 | 5 32 75 Regions Visited 2 Branch Regions 1 Pre-discovered Areas . | . . . Known Exits Taken 1 | . 1 . Unknown Exits Taken 1 | 1 . . Scrap Searched 1 | . . 1 Spaces Dug . | . . . Terrain Destroyed . | . . . Melee . | . . . Projectile . | . . . AOE . | . . . Terrain Rammed . | . . . Walls Destroyed . | . . . Machines Disabled . | . . . Actions | -11 -10 -10 --------- Run | Yrd Mat Min Total 811 | 117 302 392 Wait 202 | . 172 30 Move 495 | 73 118 304 Hop . | . . . Pick Up 13 | 8 . 5 Fast Attach 13 | 7 . 6 Attach 6 | . 2 4 Detach . | . . . Swap 1 | . 1 . Drop 6 | 1 2 3 Fire 71 | 28 3 40 Melee . | . . . Ram 4 | . 4 . Kick . | . . . Crush . | . . . Escape Stasis . | . . . Rewire . | . . . Trap . | . . . Miscellaneous . | . . . Route ------- -11/Scrapyard -10/Materials -10/Mines History --------- Turn | Location | Event 12 | -11/Scrapyard | Discovered new exit (range 16) 157 | -11/Scrapyard | Entered Materials 306 | -10/Materials | Build established: Mutant 436 | -10/Materials | Identified exit to Mines 485 | -10/Materials | Entered Mines 518 | -10/Mines | Lost 5 parts (2n1u2w) 623 | -10/Mines | Found a damaged Exp. Sensor Array with a note attached 631 | -10/Mines | Found Prototype Device 631 | -10/Mines | Identified Exp. Sensor Array 673 | -10/Mines | Learned Materials emergency access door positions 911 | -10/Mines | Core integrity fell below 50% 981 | -10/Mines | Core integrity fell below 20% 1060 | -10/Mines | Learned Materials stockpile data 1165 | -10/Mines | Found DCF Scrap (12 items) 1284 | -10/Mines | Destroyed by G-47 Trooper with Particle Gun Last Messages --------------- 01060_ Acquired derelict log, extracted data. Data stored: Materials stockpile data. 01165_ Searching scrap... 01165_ Found Ion Engine. 01165_ Found Wheel. 01165_ Found Hover Unit. 01165_ Found Signal Interpreter. 01165_ Found Lrg. Storage Unit. 01165_ Found Mining Laser. 01165_ Found Datajack. 01165_ Found Welding Torch. 01165_ Found 181 Matter. A note is attached: "With love, from the DCF." 01169_ Acquired Hcp. Matter Pod. 01174_ Acquired Ion Engine. 01175_ TJVFU<%G&NKWY2WFHTLWO#ZRSGE<% 01178_ Acquired Wheel. 01186_ Acquired 10 matter. 01209_ 4SS0RC34 YNW1FFRKA0 YS0ND1B93 01227_ Wheel destroyed. Map ----- +----------------------------------------------------+ | ????????## ####?????????# # | | ????????# ##????????# # | | ????????# #????????# # | | ????????# ###??????# # | | ????????## ## ?? ? | | ?????????# #?# # ####???# ? | | ?????????# #??# ## #??????? ? | | ?????????# #???#### #????### # | | ?????????# #?????## #???# # # | | ???###???# #????## #### | | ???# #### #???## = | | ??# ##### * #?? | | ?# ### ! #??? | | ?# #?# ? % #?????? | | ?# #?########## ##?????? | | ?# ##???##?????## #??????? | | ?# #?????# ##????## #??????? | | ?## ??????# #?????# #??????? | | ??# #?????# ##????# ###????? | | ?## ##??## ##???# #????? | | ?# #### ##### #????? | | ?# ## ### #????? | | ?# ## #?# #????? | | ?## ## #?# #????? | | ???## ### ### #????? | | ????##@ ##?# #????? | | ????## #??## ## #???## | | ????# #???# ## #### # | | ????# ##???# ## | | ???## ##????# ## | | ???# u ##?????# ## # | | ???# ##??????# #? | | ???## ##???????##### ##? | | ????## #?????????????## ##?? | | ?????## g#??????????????# #??? | | ??????## #####??????????# #??? | | ????#### g## ##?????????# #??? | | ????# #?????????# #??? | | ????# ##????????# #??? | | ????# ##???????# #??? | | ????# ####????# #??? | | ????#### ##???# #??? | | ???????## ##??# #??? | | ????????## """ ##?# #??? | | ????????## """ ### #??? | | ????????# """ #### | | ????????# #### | | ????????# ### ##??###### | | ????????## ##?## ###????????? | | ?????????####???####??????????? | +----------------------------------------------------+ Best States ------------- Heat Dissipation 25 Energy Generation 10 Energy Capacity 250 Matter Stores 300 Matter Capacity 300 Sight Range 16 Robot Scan Range 20 Terrain Scan Range 16 Terrain Scan Density 10 Evasion (%) 44 Item Schematics ----------------- None Robot Schematics ------------------ None Fabricated ------------ Nothing Repaired ---------- Nothing Studied --------- None Alien Tech Used ----------------- None Achievements -------------- None Challenges ------------ None Game ------ Seed FireAmuletHoverbase Manual? 0 Play Time 00:09:17 Cumulative 132.2 hours Start 2026.01.18 @ 19:00:46 End 2026.01.18 @ 19:07:15 Sessions 1 Manual Loads 0 Difficulty Rogue Special Mode None Game No. 191 Rogue 191 Adventurer 0 Explorer 0 Win Type - Total 1 Types 1/0/0/0/0/0/0/0/0/0 Lore% 63 Gallery% 58 Achievement% 42 Wizard Run 0 Options --------- Layout 2 ASCII 0 Keyboard 0 Movement Mouse Keybinds 0 Fullscreen 1 Font 24/Smallcaps Map View 50x44 Zoom Use 0% Tactical HUD 1 Map Filters NONE Filters NONE Steam 1 RUN: 714b2046-3dd5-4334-a87d-c61a304c740a